[Event "IX Iberoamericano Championship 2023"]
[Site "Panama City"]
[Date "2023.12.02"]
[Round "9.9"]
[White "Rodriguez Vila, Andres"]
[Black "Palma Villanueva, Miguel Ta"]
[Result "1/2-1/2"]
[ECO "B07"]
[WhiteElo "2405"]
[BlackElo "2286"]
[Annotator "ChessBase"]
[PlyCount "91"]
[EventDate "2023.11.27"]
[EventType "swiss"]
[EventCountry "PAN"]
[SourceTitle "playchess.com"]
[Source "ChessBase"]
[SourceQuality "1"]
[TimeControl "5400+30"]

1. e4 {[%emt 0:00:30]} d6 {[%emt 0:00:53]} 2. d4 {[%emt 0:00:05]} e5 {[%emt 0:00:05]} 3. dxe5 {[%emt 0:03:52]} dxe5 {[%emt 0:00:05]} 4. Qxd8+ {[%emt 0:00:05]} Kxd8 {[%emt 0:00:05]} 5. Bc4 {[%emt 0:00:04]} f6 {[%emt 0:00:04]} 6. Be3 {[%emt 0:00:08]} c6 {[%emt 0:02:02]} 7. a4 {[%emt 0:00:29]} Nd7 {[%emt 0:00:32]} 8. a5 {[%emt 0:00:19]} Bc5 {[%emt 0:01:18]} 9. Ke2 {[%emt 0:00:30]} Ke7 {[%emt 0:04:18]} 10. Nd2 {[%emt 0:00:33]} Bxe3 {[%emt 0:01:46]} 11. Kxe3 {[%emt 0:00:02]} Nh6 {[%emt 0:00:06]} 12. Ne2 {[%emt 0:01:00]} Nc5 {[%emt 0:05:06]} 13. b4 {[%emt 0:00:42]} Ne6 {[%emt 0:05:43]} 14. f3 {[%emt 0:00:16]} Rd8 {[%emt 0:01:08]} 15. Nb3 {[%emt 0:00:20]} Nf7 {[%emt 0:08:07]} 16. h4 {[%emt 0:01:35]} Bd7 {[%emt 0:04:39]} 17. g3 {[%emt 0:05:36]} Rac8 {[%emt 0:05:40]} 18. f4 {[%emt 0:09:52]} Nd6 {[%emt 0:05:15]} 19. Bd3 {[%emt 0:00:27]} c5 {[%emt 0:06:59]} 20. f5 {[%emt 0:00:12]} c4 {[%emt 0:00:37]} 21. fxe6 {[%emt 0:00:05]} Bxe6 {[%emt 0:01:08]} 22. Nc5 {[%emt 0:00:05]} cxd3 {[%emt 0:01:58]} 23. cxd3 {[%emt 0:00:04]} f5 {[%emt 0:00:05]} 24. Nc3 {[%emt 0:11:28]} fxe4 {[%emt 0:01:13]} 25. N3xe4 {[%emt 0:00:07]} Nf5+ {[%emt 0:00:15]} 26. Kd2 {[%emt 0:00:06]} Nd4 {[%emt 0:08:04]} 27. Rhf1 {[%emt 0:01:23]} Bd5 {[%emt 0:01:47]} 28. Nc3 {[%emt 0:02:46]} Bc6 {[%emt 0:08:45]} 29. Rae1 {[%emt 0:18:55]} b6 {[%emt 0:07:27]} 30. axb6 {[%emt 0:04:15]} axb6 {[%emt 0:00:05]} 31. N5a4 {[%emt 0:03:05]} Nb3+ {[%emt 0:03:13]} 32. Kc2 {[%emt 0:03:04]} Nd4+ {[%emt 0:00:27]} 33. Kb2 {[%emt 0:00:15]} Ke6 {[%emt 0:00:58]} 34. Ra1 {[%emt 0:11:51]} Rf8 {[%emt 0:04:42]} 35. Nxb6 {[%emt 0:05:37]} Rxf1 {[%emt 0:00:20]} 36. Rxf1 {[%emt 0:00:05]} Rb8 {[%emt 0:00:03]} 37. Nc4 {[%emt 0:00:08]} Rxb4+ {[%emt 0:00:04]} 38. Ka2 {[%emt 0:00:05]} Bb5 {[%emt 0:03:19]} 39. Nxb5 {[%emt 0:00:35]} Rxb5 {[%emt 0:00:27]} 40. Rf8 {[%emt 0:00:29]} Ne2 {[%emt 0:01:30]} 41. Re8+ {[%emt 0:01:52]} Kf6 {[%emt 0:00:36]} 42. g4 {[%emt 0:00:12]} Nc3+ {[%emt 0:01:29]} 43. Ka3 {[%emt 0:00:11]} Nb1+ {[%emt 0:00:12]} 44. Ka4 {[%emt 0:00:05]} Nc3+ {[%emt 0:00:03]} 45. Ka3 {[%emt 0:00:03]} Nb1+ {[%emt 0:00:03]} 46. Ka4 {[%emt 0:01:34]} 1/2-1/2

[Event "IX Iberoamericano Championship 2023"]
[Site "Panama City"]
[Date "2023.12.02"]
[Round "9.10"]
[White "Roselli Mailhe, Bernardo"]
[Black "Baules Rodriguez, Jorge Luis"]
[Result "1/2-1/2"]
[ECO "D00"]
[WhiteElo "2364"]
[BlackElo "2283"]
[Annotator "ChessBase"]
[PlyCount "26"]
[EventDate "2023.11.27"]
[EventType "swiss"]
[EventCountry "PAN"]
[SourceTitle "playchess.com"]
[Source "ChessBase"]
[SourceQuality "1"]
[TimeControl "5400+30"]

1. d4 {[%emt 0:00:04]} Nf6 {[%emt 0:00:33]} 2. Nf3 {[%emt 0:00:34]} g6 {[%emt 0:00:13]} 3. Nc3 {[%emt 0:00:44]} d5 {[%emt 0:00:31]} 4. Bf4 {[%emt 0:00:08]} Bg7 {[%emt 0:00:17]} 5. e3 {[%emt 0:01:15]} O-O {[%emt 0:00:25]} 6. Be2 {[%emt 0:00:22]} c5 {[%emt 0:01:58]} 7. Ne5 {[%emt 0:01:58]} Nc6 {[%emt 0:02:51]} 8. O-O {[%emt 0:01:31]} cxd4 {[%emt 0:07:19]} 9. exd4 {[%emt 0:00:05]} Nd7 {[%emt 0:00:17]} 10. Nf3 {[%emt 0:14:27]} Nf6 {[%emt 0:05:51]} 11. Ne5 {[%emt 0:07:25]} Nd7 {[%emt 0:02:04]} 12. Nxd5 {[%emt 0:02:52]} Ndxe5 {[%emt 0:00:30]} 13. dxe5 {[%emt 0:00:05]} Be6 {[%emt 0:04:10]} 1/2-1/2

[Event "IX Iberoamericano Championship 2023"]
[Site "Panama City"]
[Date "2023.12.02"]
[Round "9.11"]
[White "Martins, Bruno Andre Leite"]
[Black "Villalba, Marcelo"]
[Result "1-0"]
[ECO "C45"]
[WhiteElo "2323"]
[BlackElo "2241"]
[Annotator "ChessBase"]
[PlyCount "73"]
[EventDate "2023.11.27"]
[EventType "swiss"]
[EventCountry "PAN"]
[SourceTitle "playchess.com"]
[Source "ChessBase"]
[SourceQuality "1"]
[TimeControl "5400+30"]

1. e4 {[%emt 0:03:36]} e5 {[%emt 0:00:21]} 2. Nf3 {[%emt 0:00:08]} Nc6 {[%emt 0:00:09]} 3. d4 {[%emt 0:00:07]} exd4 {[%emt 0:00:36]} 4. Nxd4 {[%emt 0:00:08]} Bc5 {[%emt 0:01:11]} 5. Nxc6 {[%emt 0:00:48]} Qf6 {[%emt 0:00:24]} 6. Qf3 {[%emt 0:00:09]} bxc6 {[%emt 0:00:36]} 7. Nd2 {[%emt 0:03:42]} d5 {[%emt 0:49:12]} 8. exd5 {[%emt 0:09:58]} Qxf3 {[%emt 0:00:08]} 9. Nxf3 {[%emt 0:00:37]} Nf6 {[%emt 0:00:12]} 10. dxc6 {[%emt 0:15:17]} Ng4 {[%emt 0:00:39]} 11. Bc4 {[%emt 0:04:02]} Bxf2+ {[%emt 0:06:47]} 12. Ke2 {[%emt 0:03:37]} Bb6 {[%emt 0:21:26]} 13. h3 {[%emt 0:10:41]} Nf6 {[%emt 0:00:01]} 14. Be3 {[%emt 0:02:07]} Bxe3 {[%emt 0:04:15]} 15. Kxe3 {[%emt 0:01:11]} Bf5 {[%emt 0:00:01]} 16. Kf4 {[%emt 0:11:53]} Be6 {[%emt 0:11:29]} 17. Bxe6 {[%emt 0:02:53]} fxe6 {[%emt 0:00:01]} 18. Rhe1 {[%emt 0:00:42]} O-O {[%emt 0:00:13]} 19. Kg3 {[%emt 0:00:36]} Rab8 {[%emt 0:00:24]} 20. b3 {[%emt 0:00:35]} Rb6 {[%emt 0:00:36]} 21. Nd4 {[%emt 0:03:43]} Nh5+ {[%emt 0:00:08]} 22. Kh2 {[%emt 0:00:08]} Rf2 {[%emt 0:01:04]} 23. Rad1 {[%emt 0:00:34]} h6 {[%emt 0:01:25]} 24. Re5 {[%emt 0:03:53]} Nf4 {[%emt 0:00:31]} 25. Kg3 {[%emt 0:00:14]} Ng6 {[%emt 0:00:38]} 26. Rxe6 {[%emt 0:00:08]} Rf6 {[%emt 0:00:20]} 27. Re8+ {[%emt 0:01:52]} Kh7 {[%emt 0:00:36]} 28. Rde1 {[%emt 0:01:00]} h5 {[%emt 0:00:22]} 29. h4 {[%emt 0:03:27]} Ra6 {[%emt 0:00:26]} 30. a4 {[%emt 0:00:52]} Nxh4 {[%emt 0:00:35]} 31. R1e5 {[%emt 0:00:54]} g6 {[%emt 0:00:39]} 32. R8e7+ {[%emt 0:06:36]} Kh6 {[%emt 0:00:05]} 33. Rxc7 {[%emt 0:00:17]} g5 {[%emt 0:00:56]} 34. Rc5 {[%emt 0:03:15]} Rf1 {[%emt 0:00:33]} 35. Rd7 {[%emt 0:01:19]} Rg1 {[%emt 0:00:28]} 36. Rd6+ {[%emt 0:00:21]} Kh7 {[%emt 0:00:10]} 37. Rxg5 {[%emt 0:00:18]} 1-0

[Event "IX Iberoamericano Championship 2023"]
[Site "Panama City"]
[Date "2023.12.02"]
[Round "9.12"]
[White "Hernandez Montes, Jhon Sebastian"]
[Black "Noboa Silva, Kevin"]
[Result "1-0"]
[ECO "C10"]
[WhiteElo "2280"]
[BlackElo "2318"]
[Annotator "ChessBase"]
[PlyCount "85"]
[EventDate "2023.11.27"]
[EventType "swiss"]
[EventCountry "PAN"]
[SourceTitle "playchess.com"]
[Source "ChessBase"]
[SourceQuality "1"]
[TimeControl "5400+30"]

1. d4 {[%emt 0:00:01]} e6 {[%emt 0:01:59]} 2. e4 {[%emt 0:00:22]} d5 {[%emt 0:00:13]} 3. Nc3 {[%emt 0:00:07]} dxe4 {[%emt 0:00:15]} 4. Nxe4 {[%emt 0:00:08]} Nd7 {[%emt 0:00:07]} 5. Nf3 {[%emt 0:02:45]} Ngf6 {[%emt 0:00:26]} 6. Bd3 {[%emt 0:02:00]} Nxe4 {[%emt 0:01:43]} 7. Bxe4 {[%emt 0:00:01]} Nf6 {[%emt 0:01:52]} 8. Bd3 {[%emt 0:00:53]} c5 {[%emt 0:01:12]} 9. dxc5 {[%emt 0:04:47]} Bxc5 {[%emt 0:00:37]} 10. O-O {[%emt 0:00:02]} O-O {[%emt 0:01:38]} 11. Qe2 {[%emt 0:02:53]} Qc7 {[%emt 0:09:28]} 12. Bg5 {[%emt 0:04:47]} Be7 {[%emt 0:02:29]} 13. a4 {[%emt 0:05:23]} Rd8 {[%emt 0:04:39]} 14. h3 {[%emt 0:07:08]} Bd7 {[%emt 0:09:39]} 15. Rfe1 {[%emt 0:07:06]} Be8 {[%emt 0:06:31]} 16. Bh4 {[%emt 0:20:56]} Rac8 {[%emt 0:08:34]} 17. Bg3 {[%emt 0:05:40]} Bd6 {[%emt 0:04:30]} 18. Bh4 {[%emt 0:06:25]} Be7 {[%emt 0:14:10]} 19. a5 {[%emt 0:00:11]} Qc5 {[%emt 0:01:04]} 20. Bg5 {[%emt 0:03:32]} Nd5 {[%emt 0:02:24]} 21. Qe4 {[%emt 0:01:46]} g6 {[%emt 0:00:16]} 22. Qh4 {[%emt 0:01:07]} Rc7 {[%emt 0:07:04]} 23. Rad1 {[%emt 0:07:42]} f6 {[%emt 0:01:58]} 24. Bd2 {[%emt 0:00:37]} Bf7 {[%emt 0:00:35]} 25. b4 {[%emt 0:02:16]} Nxb4 {[%emt 0:09:04]} 26. Bxg6 {[%emt 0:01:01]} hxg6 {[%emt 0:04:18]} 27. Bxb4 {[%emt 0:00:15]} Qh5 {[%emt 0:02:52]} 28. Rxd8+ {[%emt 0:05:31]} Bxd8 {[%emt 0:00:01]} 29. Rd1 {[%emt 0:00:59]} Be7 {[%emt 0:05:22]} 30. Qd4 {[%emt 0:00:51]} Qd5 {[%emt 0:00:00]} 31. Qa1 {[%emt 0:00:26]} Qf5 {[%emt 0:00:00]} 32. Bxe7 {[%emt 0:01:10]} Rxe7 {[%emt 0:00:00]} 33. Qc3 {[%emt 0:01:00]} Kg7 {[%emt 0:00:00]} 34. g4 {[%emt 0:02:47]} Qf4 {[%emt 0:00:17]} 35. Rd4 {[%emt 0:01:51]} Rc7 {[%emt 0:00:13]} 36. Qa3 {[%emt 0:00:36]} Qh6 {[%emt 0:00:37]} 37. g5 {[%emt 0:00:44]} fxg5 {[%emt 0:01:53]} 38. Rd8 {[%emt 0:01:55]} Kh7 {[%emt 0:00:08]} 39. Qd6 {[%emt 0:00:22]} Rc4 {[%emt 0:01:09]} 40. Qe5 {[%emt 0:00:38]} Qg7 {[%emt 0:00:41]} 41. Nxg5+ {[%emt 0:00:06]} Kh6 {[%emt 0:00:07]} 42. Rh8+ {[%emt 0:00:11]} Qxh8 {[%emt 0:00:14]} 43. Nxf7+ {[%emt 0:00:05]} 1-0

[Event "IX Iberoamericano Championship 2023"]
[Site "Panama City"]
[Date "2023.12.02"]
[Round "9.13"]
[White "Solares Orozco, Kebert"]
[Black "Ortiz Verdezoto, Anahi"]
[Result "1/2-1/2"]
[ECO "D00"]
[WhiteElo "2312"]
[BlackElo "2175"]
[Annotator "ChessBase"]
[PlyCount "84"]
[EventDate "2023.11.27"]
[EventType "swiss"]
[EventCountry "PAN"]
[SourceTitle "playchess.com"]
[Source "ChessBase"]
[SourceQuality "1"]
[TimeControl "5400+30"]

1. d4 {[%emt 0:00:03]} Nf6 {[%emt 0:01:52]} 2. Bg5 {[%emt 0:00:35]} d5 {[%emt 0:00:13]} 3. Bxf6 {[%emt 0:00:31]} gxf6 {[%emt 0:00:04]} 4. e3 {[%emt 0:00:12]} c5 {[%emt 0:00:05]} 5. dxc5 {[%emt 0:00:06]} e6 {[%emt 0:00:14]} 6. c4 {[%emt 0:00:09]} dxc4 {[%emt 0:01:04]} 7. Nd2 {[%emt 0:00:09]} Bxc5 {[%emt 0:04:27]} 8. Bxc4 {[%emt 0:00:16]} Nc6 {[%emt 0:07:13]} 9. Ngf3 {[%emt 0:02:30]} Rg8 {[%emt 0:11:25]} 10. g3 {[%emt 0:04:09]} f5 {[%emt 0:00:32]} 11. Rc1 {[%emt 0:06:29]} Qe7 {[%emt 0:02:48]} 12. e4 {[%emt 0:07:12]} Bd7 {[%emt 0:07:34]} 13. exf5 {[%emt 0:07:21]} exf5+ {[%emt 0:00:38]} 14. Qe2 {[%emt 0:00:19]} Qxe2+ {[%emt 0:03:57]} 15. Kxe2 {[%emt 0:01:27]} Bb6 {[%emt 0:01:48]} 16. Rhd1 {[%emt 0:01:46]} Rd8 {[%emt 0:05:33]} 17. Nf1 {[%emt 0:14:14]} f4 {[%emt 0:04:22]} 18. gxf4 {[%emt 0:07:26]} Rg4 {[%emt 0:10:50]} 19. Ne3 {[%emt 0:07:43]} Rxf4 {[%emt 0:00:07]} 20. b3 {[%emt 0:03:33]} Nd4+ {[%emt 0:03:02]} 21. Nxd4 {[%emt 0:00:02]} Bxd4 {[%emt 0:00:05]} 22. Rg1 {[%emt 0:04:28]} Bc6 {[%emt 0:08:54]} 23. Rg8+ {[%emt 0:03:07]} Ke7 {[%emt 0:00:40]} 24. Rxd8 {[%emt 0:00:19]} Kxd8 {[%emt 0:01:39]} 25. Rg1 {[%emt 0:00:42]} Bf3+ {[%emt 0:02:04]} 26. Kd3 {[%emt 0:00:15]} Be5 {[%emt 0:00:18]} 27. Rg8+ {[%emt 0:00:19]} Ke7 {[%emt 0:00:06]} 28. h3 {[%emt 0:02:21]} Rd4+ {[%emt 0:09:49]} 29. Kc2 {[%emt 0:00:30]} Be4+ {[%emt 0:00:03]} 30. Kc1 {[%emt 0:00:09]} Bd6 {[%emt 0:00:07]} 31. Nc2 {[%emt 0:03:22]} Bf4+ {[%emt 0:01:14]} 32. Ne3 {[%emt 0:00:01]} Bd6 {[%emt 0:00:10]} 33. Nc2 {[%emt 0:00:06]} Bxc2 {[%emt 0:05:56]} 34. Kxc2 {[%emt 0:00:04]} Rf4 {[%emt 0:00:02]} 35. Rg2 {[%emt 0:01:48]} Kf6 {[%emt 0:02:29]} 36. Bd5 {[%emt 0:08:26]} b6 {[%emt 0:00:04]} 37. Bb7 {[%emt 0:00:08]} Rh4 {[%emt 0:02:16]} 38. Bc8 {[%emt 0:00:12]} Rh5 {[%emt 0:00:02]} 39. Kd3 {[%emt 0:11:33]} Rc5 {[%emt 0:00:30]} 40. Bb7 {[%emt 0:01:23]} Rh5 {[%emt 0:01:11]} 41. Bc8 {[%emt 0:00:08]} Rc5 {[%emt 0:00:36]} 42. Bb7 {[%emt 0:00:08]} Rh5 {[%emt 0:00:20]} 1/2-1/2

[Event "IX Iberoamericano Championship 2023"]
[Site "Panama City"]
[Date "2023.12.02"]
[Round "9.14"]
[White "Obregon Garcia, Roxangel"]
[Black "Soto, Miguel Angel"]
[Result "0-1"]
[ECO "B76"]
[WhiteElo "2138"]
[BlackElo "2359"]
[Annotator "ChessBase"]
[PlyCount "120"]
[EventDate "2023.11.27"]
[EventType "swiss"]
[EventCountry "PAN"]
[SourceTitle "playchess.com"]
[Source "ChessBase"]
[SourceQuality "1"]
[TimeControl "5400+30"]

1. e4 {[%emt 0:00:02]} c5 {[%emt 0:02:34]} 2. Nf3 {[%emt 0:00:02]} d6 {[%emt 0:00:18]} 3. d4 {[%emt 0:00:04]} cxd4 {[%emt 0:00:12]} 4. Nxd4 {[%emt 0:00:06]} Nf6 {[%emt 0:00:08]} 5. Nc3 {[%emt 0:00:06]} g6 {[%emt 0:00:09]} 6. Be3 {[%emt 0:00:39]} Bg7 {[%emt 0:00:09]} 7. f3 {[%emt 0:01:11]} Nc6 {[%emt 0:00:12]} 8. Qd2 {[%emt 0:00:07]} O-O {[%emt 0:00:12]} 9. O-O-O {[%emt 0:00:29]} d5 {[%emt 0:00:18]} 10. exd5 {[%emt 0:00:17]} Nxd5 {[%emt 0:00:31]} 11. Nxc6 {[%emt 0:00:02]} bxc6 {[%emt 0:00:17]} 12. Bd4 {[%emt 0:00:03]} e5 {[%emt 0:00:24]} 13. Bc5 {[%emt 0:00:03]} Be6 {[%emt 0:00:31]} 14. Ne4 {[%emt 0:00:34]} Re8 {[%emt 0:01:15]} 15. Bc4 {[%emt 0:01:09]} Nf4 {[%emt 0:03:54]} 16. Qc3 {[%emt 0:08:06]} Bd5 {[%emt 0:08:55]} 17. g4 {[%emt 0:22:24]} Qh4 {[%emt 0:13:21]} 18. Bf2 {[%emt 0:03:51]} Qh3 {[%emt 0:04:44]} 19. Bf1 {[%emt 0:13:57]} Bxe4 {[%emt 0:16:34]} 20. fxe4 {[%emt 0:00:19]} Qxg4 {[%emt 0:00:28]} 21. Re1 {[%emt 0:09:22]} Ng2 {[%emt 0:10:11]} 22. Bxg2 {[%emt 0:07:26]} Qxg2 {[%emt 0:00:33]} 23. Qe3 {[%emt 0:00:17]} Qg4 {[%emt 0:02:54]} 24. Kb1 {[%emt 0:02:47]} a5 {[%emt 0:01:23]} 25. a4 {[%emt 0:02:09]} Reb8 {[%emt 0:02:39]} 26. b3 {[%emt 0:05:16]} Rb4 {[%emt 0:03:03]} 27. Qd3 {[%emt 0:02:41]} Bf8 {[%emt 0:05:39]} 28. Qc3 {[%emt 0:03:30]} Rab8 {[%emt 0:04:20]} 29. Qxc6 {[%emt 0:10:03]} Qf3 {[%emt 0:04:47]} 30. Be3 {[%emt 0:01:39]} Rxb3+ {[%emt 0:08:36]} 31. cxb3 {[%emt 0:00:06]} Rxb3+ {[%emt 0:00:09]} 32. Kc2 {[%emt 0:00:38]} Rxe3 {[%emt 0:01:20]} 33. Rxe3 {[%emt 0:00:12]} Qxh1 {[%emt 0:01:10]} 34. Re2 {[%emt 0:01:56]} Qa1 {[%emt 0:00:43]} 35. Rd2 {[%emt 0:01:13]} Bb4 {[%emt 0:02:03]} 36. Rd5 {[%emt 0:01:27]} Kg7 {[%emt 0:02:27]} 37. Rd7 {[%emt 0:03:19]} Qa2+ {[%emt 0:00:55]} 38. Kd3 {[%emt 0:00:32]} Qb3+ {[%emt 0:00:16]} 39. Ke2 {[%emt 0:00:05]} Qb2+ {[%emt 0:00:50]} 40. Ke3 {[%emt 0:00:15]} Qxh2 {[%emt 0:00:33]} 41. Qd5 {[%emt 0:00:56]} Qf4+ {[%emt 0:00:44]} 42. Kd3 {[%emt 0:00:01]} h5 {[%emt 0:00:18]} 43. Rd8 {[%emt 0:00:33]} h4 {[%emt 0:00:31]} 44. Qd7 {[%emt 0:01:39]} Qf3+ {[%emt 0:00:40]} 45. Kc4 {[%emt 0:00:28]} Qxe4+ {[%emt 0:00:02]} 46. Kb5 {[%emt 0:00:03]} Qe2+ {[%emt 0:00:25]} 47. Kb6 {[%emt 0:00:20]} Qe3+ {[%emt 0:00:19]} 48. Ka6 {[%emt 0:00:39]} Qb3 {[%emt 0:01:08]} 49. Qe8 {[%emt 0:00:42]} Qe6+ {[%emt 0:00:36]} 50. Qxe6 {[%emt 0:00:04]} fxe6 {[%emt 0:00:04]} 51. Kb5 {[%emt 0:00:08]} g5 {[%emt 0:00:41]} 52. Kc4 {[%emt 0:00:04]} Kf6 {[%emt 0:00:42]} 53. Kd3 {[%emt 0:00:05]} Kf5 {[%emt 0:00:15]} 54. Ke3 {[%emt 0:00:03]} Bc5+ {[%emt 0:00:31]} 55. Ke2 {[%emt 0:00:04]} g4 {[%emt 0:00:28]} 56. Rh8 {[%emt 0:00:03]} h3 {[%emt 0:00:48]} 57. Kf1 {[%emt 0:00:49]} Kf4 {[%emt 0:00:23]} 58. Rh7 {[%emt 0:00:24]} Kg3 {[%emt 0:00:38]} 59. Rh6 {[%emt 0:00:17]} h2 {[%emt 0:00:23]} 60. Rh7 {[%emt 0:00:04]} Be7 {[%emt 0:00:19]} 0-1

[Event "IX Iberoamericano Championship 2023"]
[Site "Panama City"]
[Date "2023.12.02"]
[Round "9.15"]
[White "Esquivel Golcher, Luis Enrique"]
[Black "Matamoros Franco, Carlos S."]
[Result "0-1"]
[ECO "B12"]
[WhiteElo "2108"]
[BlackElo "2455"]
[Annotator "ChessBase"]
[PlyCount "56"]
[EventDate "2023.11.27"]
[EventType "swiss"]
[EventCountry "PAN"]
[SourceTitle "playchess.com"]
[Source "ChessBase"]
[SourceQuality "1"]
[TimeControl "5400+30"]

1. e4 {[%emt 0:08:17]} c6 {[%emt 0:00:29]} 2. d4 {[%emt 0:00:13]} d5 {[%emt 1:31:01]} 3. f3 {[%emt 0:00:07]} dxe4 {[%emt 0:00:00]} 4. fxe4 {[%emt 0:00:08]} e5 {[%emt 0:00:00]} 5. Nf3 {[%emt 0:00:12]} Bg4 {[%emt 0:00:00]} 6. c3 {[%emt 0:01:29]} Nd7 {[%emt 0:00:00]} 7. Bc4 {[%emt 0:01:33]} Bd6 {[%emt 0:00:00]} 8. Qb3 {[%emt 0:01:00]} Qe7 {[%emt 0:00:00]} 9. Ng5 {[%emt 0:00:16]} Nh6 {[%emt 0:00:00]} 10. Qxb7 {[%emt 0:00:42]} O-O {[%emt 0:00:00]} 11. Qb3 {[%emt 0:24:13]} exd4 {[%emt 0:00:00]} 12. cxd4 {[%emt 0:05:51]} c5 {[%emt 0:00:00]} 13. Nc3 {[%emt 0:00:43]} cxd4 {[%emt 0:00:00]} 14. Nd5 {[%emt 0:00:23]} Qd8 {[%emt 0:00:00]} 15. O-O {[%emt 0:03:11]} Ne5 {[%emt 0:00:00]} 16. h3 {[%emt 0:09:38]} Rb8 {[%emt 0:00:00]} 17. Qc2 {[%emt 0:00:01]} Rc8 {[%emt 0:00:00]} 18. b3 {[%emt 0:00:31]} d3 {[%emt 0:00:00]} 19. Qb2 {[%emt 0:05:47]} Be2 {[%emt 0:00:00]} 20. Be3 {[%emt 0:04:24]} Re8 {[%emt 0:00:00]} 21. Rac1 {[%emt 0:10:54]} Bc5 {[%emt 0:00:00]} 22. Bxc5 {[%emt 0:02:19]} Rxc5 {[%emt 0:00:00]} 23. Qd2 {[%emt 0:00:48]} Nxc4 {[%emt 0:00:00]} 24. bxc4 {[%emt 0:01:59]} Bxf1 {[%emt 0:00:00]} 25. Rxf1 {[%emt 0:00:45]} f6 {[%emt 0:00:00]} 26. Nf3 {[%emt 0:01:57]} Rxc4 {[%emt 0:00:00]} 27. Nh4 {[%emt 0:03:11]} Rcxe4 {[%emt 0:00:00]} 28. Nxf6+ {[%emt 0:00:42]} gxf6 {[%emt 0:00:00]} 0-1

[Event "IX Iberoamericano Championship 2023"]
[Site "Panama City"]
[Date "2023.12.02"]
[Round "9.16"]
[White "Delgado Rosas, Alex Antonio"]
[Black "Sanchez Alvarez, Roberto Carlos"]
[Result "1-0"]
[ECO "D02"]
[WhiteElo "2105"]
[BlackElo "2437"]
[Annotator "ChessBase"]
[PlyCount "79"]
[EventDate "2023.11.27"]
[EventType "swiss"]
[EventCountry "PAN"]
[SourceTitle "playchess.com"]
[Source "ChessBase"]
[SourceQuality "1"]
[TimeControl "5400+30"]

1. d4 {[%emt 0:00:05]} Nf6 {[%emt 0:06:00]} 2. Bf4 {[%emt 0:00:06]} d5 {[%emt 0:00:57]} 3. e3 {[%emt 0:00:15]} c5 {[%emt 0:00:10]} 4. Nf3 {[%emt 0:00:08]} Nc6 {[%emt 0:00:08]} 5. Nbd2 {[%emt 0:00:07]} Nh5 {[%emt 0:00:16]} 6. Be5 {[%emt 0:01:19]} f6 {[%emt 0:00:13]} 7. c4 {[%emt 0:02:15]} e6 {[%emt 0:00:14]} 8. Bg3 {[%emt 0:00:51]} cxd4 {[%emt 0:00:21]} 9. Nxd4 {[%emt 0:02:42]} Nxg3 {[%emt 0:01:35]} 10. Nxc6 {[%emt 0:02:23]} bxc6 {[%emt 0:00:03]} 11. hxg3 {[%emt 0:00:07]} g6 {[%emt 0:05:12]} 12. Qc2 {[%emt 0:01:51]} Kf7 {[%emt 0:02:01]} 13. Bd3 {[%emt 0:01:43]} f5 {[%emt 0:01:10]} 14. g4 {[%emt 0:05:57]} Bg7 {[%emt 0:00:37]} 15. gxf5 {[%emt 0:00:20]} exf5 {[%emt 0:00:20]} 16. g4 {[%emt 0:05:44]} f4 {[%emt 0:24:27]} 17. O-O-O {[%emt 0:17:55]} Rb8 {[%emt 0:19:36]} 18. Nb3 {[%emt 0:00:06]} Bxg4 {[%emt 0:01:21]} 19. Rdg1 {[%emt 0:00:31]} h5 {[%emt 0:00:43]} 20. Bxg6+ {[%emt 0:13:22]} Kg8 {[%emt 0:00:31]} 21. f3 {[%emt 0:11:03]} Bxf3 {[%emt 0:00:32]} 22. Bf7+ {[%emt 0:00:15]} Kf8 {[%emt 0:00:07]} 23. Rxg7 {[%emt 0:00:15]} Bxh1 {[%emt 0:16:17]} 24. Nd4 {[%emt 0:08:55]} Qf6 {[%emt 0:01:08]} 25. Ne6+ {[%emt 0:00:56]} Ke7 {[%emt 0:00:02]} 26. Bg8+ {[%emt 0:02:57]} Qxg7 {[%emt 0:02:25]} 27. Nxg7 {[%emt 0:00:11]} Rbxg8 {[%emt 0:00:03]} 28. Qg6 {[%emt 0:01:21]} Kd7 {[%emt 0:02:58]} 29. Qf7+ {[%emt 0:00:45]} Kd6 {[%emt 0:00:38]} 30. Qxf4+ {[%emt 0:01:04]} Kd7 {[%emt 0:00:32]} 31. Qf7+ {[%emt 0:01:36]} Kd6 {[%emt 0:00:02]} 32. Qf6+ {[%emt 0:02:28]} Kc7 {[%emt 0:02:26]} 33. Ne6+ {[%emt 0:00:56]} Kb6 {[%emt 0:00:47]} 34. c5+ {[%emt 0:00:14]} Kb5 {[%emt 0:00:48]} 35. a4+ {[%emt 0:00:40]} Kxa4 {[%emt 0:02:02]} 36. Qd4+ {[%emt 0:00:12]} Ka5 {[%emt 0:00:19]} 37. Nc7 {[%emt 0:09:23]} Rg1+ {[%emt 0:00:02]} 38. Kd2 {[%emt 0:00:12]} Rb8 {[%emt 0:00:04]} 39. Qc3+ {[%emt 0:00:32]} Rb4 {[%emt 0:00:01]} 40. Qa3+ {[%emt 0:00:17]} 1-0

[Event "IX Iberoamericano Championship 2023"]
[Site "Panama City"]
[Date "2023.12.02"]
[Round "9.17"]
[White "Flores Quillas, Diego Saul Rodri"]
[Black "Fernandez, Maria Florencia"]
[Result "1-0"]
[ECO "C17"]
[WhiteElo "2414"]
[BlackElo "2099"]
[Annotator "ChessBase"]
[PlyCount "75"]
[EventDate "2023.11.27"]
[EventType "swiss"]
[EventCountry "PAN"]
[SourceTitle "playchess.com"]
[Source "ChessBase"]
[SourceQuality "1"]
[TimeControl "5400+30"]

1. e4 {[%emt 0:13:10]} e6 {[%emt 0:00:13]} 2. d4 {[%emt 0:00:05]} d5 {[%emt 0:00:05]} 3. Nc3 {[%emt 0:00:03]} Bb4 {[%emt 0:00:36]} 4. e5 {[%emt 0:00:05]} c5 {[%emt 0:00:30]} 5. Qg4 {[%emt 0:00:04]} Ne7 {[%emt 0:00:50]} 6. dxc5 {[%emt 0:00:05]} Nbc6 {[%emt 0:00:42]} 7. Bd2 {[%emt 0:00:06]} O-O {[%emt 0:02:08]} 8. Nf3 {[%emt 0:00:05]} Ng6 {[%emt 0:03:46]} 9. Qh5 {[%emt 0:02:09]} Bxc5 {[%emt 0:02:54]} 10. Bd3 {[%emt 0:00:23]} Nb4 {[%emt 0:01:47]} 11. O-O {[%emt 0:00:29]} Nxd3 {[%emt 0:05:06]} 12. cxd3 {[%emt 0:00:04]} f6 {[%emt 0:07:37]} 13. d4 {[%emt 0:02:51]} Be7 {[%emt 0:01:08]} 14. exf6 {[%emt 0:02:50]} Rxf6 {[%emt 0:02:34]} 15. Bg5 {[%emt 0:09:23]} Rf5 {[%emt 0:04:39]} 16. Bxe7 {[%emt 0:00:08]} Qxe7 {[%emt 0:00:46]} 17. Qg4 {[%emt 0:00:08]} Bd7 {[%emt 0:05:32]} 18. Rfe1 {[%emt 1:07:22]} Raf8 {[%emt 0:06:06]} 19. Qg3 {[%emt 0:00:00]} Nf4 {[%emt 0:53:01]} 20. Re5 {[%emt 0:00:00]} Qb4 {[%emt 0:00:00]} 21. Rb1 {[%emt 0:00:00]} Be8 {[%emt 0:00:00]} 22. Rxf5 {[%emt 0:00:00]} Rxf5 {[%emt 0:00:00]} 23. Nh4 {[%emt 0:00:00]} Rf6 {[%emt 0:00:00]} 24. Qe3 {[%emt 0:00:00]} Bg6 {[%emt 0:00:00]} 25. Nxg6 {[%emt 0:00:00]} Nxg6 {[%emt 0:00:00]} 26. a3 {[%emt 0:00:00]} Qb3 {[%emt 0:00:00]} 27. Ne4 {[%emt 0:00:00]} Qb6 {[%emt 0:00:00]} 28. Nxf6+ {[%emt 0:00:00]} gxf6 {[%emt 0:00:00]} 29. Rc1 {[%emt 0:00:00]} Ne7 {[%emt 0:00:00]} 30. g4 {[%emt 0:00:00]} Kf7 {[%emt 0:00:00]} 31. Re1 {[%emt 0:00:00]} Ng6 {[%emt 0:00:00]} 32. f4 {[%emt 0:00:00]} Nh4 {[%emt 0:00:00]} 33. Kf2 {[%emt 0:00:00]} Qxb2+ {[%emt 0:01:36]} 34. Re2 {[%emt 0:00:00]} Qb6 {[%emt 0:01:33]} 35. f5 {[%emt 0:00:00]} exf5 {[%emt 0:00:15]} 36. Qe8+ {[%emt 0:00:00]} Kg7 {[%emt 0:00:03]} 37. Re7+ {[%emt 0:00:00]} Kh6 {[%emt 0:00:06]} 38. Qh5# {[%emt 0:00:00]} 1-0